bitfinex/quotes_BTCUSD_20250618
["timestamp","ask_amount","ask_price","bid_price","bid_amount"]
[1750260284270,0.23656419,104720.0,104710.0,0.19114524]
[1750260284475,0.21891068,104720.0,104710.0,0.21979515]
[1750260284673,5.05,104720.0,104710.0,0.29264469]
[1750260285252,0.01909763,104720.0,104710.0,0.29264469]
[1750260285459,0.21909754,104720.0,104710.0,0.29264469]
[1750260285808,0.21909745,104720.0,104710.0,0.29264469]
[1750260286014,0.01909645,104730.0,104710.0,0.31179029]
[1750260286224,0.02864435,104730.0,104720.0,0.28253201]
[1750260286449,0.0095479,104730.0,104720.0,0.28253201]
[1750260286654,0.43581896,104740.0,104730.0,0.27276341]
[1750260286850,0.00954681,104740.0,104730.0,0.45705921]
[1750260287106,0.06395754,104750.0,104740.0,0.29183734]
[1750260287325,0.23525954,104750.0,104740.0,0.29183734]
[1750260287661,0.23277954,104750.0,104740.0,0.29183734]
[1750260288085,0.24232598,104750.0,104740.0,0.29183734]
[1750260288534,0.23277954,104750.0,104740.0,0.29183734]
[1750260288742,0.26632389,104750.0,104740.0,0.30771351]
[1750260288965,0.22863787,104750.0,104740.0,0.30771351]
[1750260289172,0.22863787,104750.0,104740.0,0.29183734]
[1750260289598,0.23818422,104750.0,104740.0,0.29183734]
[1750260289802,0.26078016,104750.0,104740.0,0.29183734]
[1750260290422,0.25123381,104750.0,104740.0,0.29183734]
[1750260290627,0.429115,104750.0,104740.0,0.29183734]
[1750260290847,0.46125747,104750.0,104740.0,0.29183734]
[1750260291059,0.26125747,104750.0,104740.0,0.29183734]
[1750260291267,0.26125747,104750.0,104740.0,0.28229053]
[1750260291479,0.26125747,104750.0,104740.0,0.29183734]
[1750260292092,0.26078016,104750.0,104740.0,0.29183734]
[1750260292295,5.131315,104750.0,104740.0,0.30138406]
[1750260292509,0.01909243,104750.0,104740.0,0.30138406]
[1750260292736,0.02863778,104750.0,104740.0,0.30138406]
[1750260292944,0.03818413,104750.0,104740.0,0.30138406]
[1750260293155,0.04773057,104750.0,104740.0,0.30138406]
[1750260293735,0.03818395,104750.0,104740.0,0.30138406]
[1750260293934,0.01909161,104750.0,104740.0,0.3837981]
[1750260294640,0.02863778,104750.0,104740.0,0.30138406]
[1750260294840,0.22911491,104750.0,104740.0,0.25364901]
[1750260295041,0.20049618,104740.0,104730.0,0.2839114]
[1750260295315,0.21004353,104740.0,104730.0,0.3846914]
[1750260295498,0.02864142,104740.0,104730.0,0.23870693]
[1750260295697,0.0190917,104750.0,104740.0,0.27432593]
[1750260295834,0.00954571,104750.0,104740.0,0.27432593]
[1750260296035,0.00954571,104750.0,104740.0,0.43940593]
[1750260296442,0.01909161,104750.0,104740.0,0.43940593]
[1750260297091,0.02863778,104750.0,104740.0,0.43940593]
[1750260297316,0.03745016,104750.0,104740.0,0.43940593]
[1750260297526,0.02790399,104750.0,104740.0,0.43940593]
[1750260297744,0.01909161,104750.0,104740.0,0.43940593]
[1750260298801,0.11067468,104760.0,104750.0,0.00954653]
[1750260299097,0.01909179,104750.0,104740.0,0.44895256]
[1750260299306,0.02863814,104750.0,104740.0,0.44895256]
[1750260299516,0.01909161,104750.0,104740.0,0.52256872]
[1750260299740,0.02863778,104750.0,104740.0,0.52256872]
[1750260299951,0.03818413,104750.0,104740.0,0.52256872]
[1750260300160,0.02863778,104750.0,104740.0,0.44895256]
[1750260300789,0.03818413,104750.0,104740.0,0.44895256]
[1750260301026,0.23866144,104750.0,104740.0,0.44895382]
[1750260301234,0.03818413,104750.0,104740.0,0.45850063]
[1750260301451,0.02863778,104750.0,104740.0,0.45850063]
[1750260301881,0.04699546,104750.0,104740.0,0.45850063]
[1750260302521,0.24747277,104750.0,104740.0,0.45850063]
[1750260302961,0.03744911,104750.0,104740.0,0.45850063]
[1750260303188,0.02790294,104750.0,104740.0,0.45850063]
[1750260303419,0.03744911,104750.0,104740.0,0.45850063]
[1750260303624,0.00881133,104750.0,104740.0,0.45850063]
[1750260303840,0.06508716,104760.0,104750.0,0.28126956]
[1750260304073,0.04746495,104760.0,104750.0,0.29081546]
[1750260304277,0.05700994,104760.0,104750.0,0.38705722]
[1750260304490,0.04746495,104760.0,104750.0,0.38705722]
[1750260304722,0.00881101,104760.0,104750.0,0.38705722]
[1750260304958,0.04703795,104770.0,104760.0,0.28194834]
[1750260305168,0.01854639,104770.0,104760.0,0.28194834]
[1750260305383,0.01927955,104770.0,104760.0,0.44690834]
[1750260305593,0.02809056,104770.0,104760.0,0.44690834]
[1750260306055,0.07618262,104770.0,104760.0,0.44690834]
[1750260306280,0.22255908,104780.0,104770.0,0.2904719]
[1750260306498,0.00505271,104790.0,104780.0,0.28090643]
[1750260306719,0.00505271,104790.0,104780.0,0.58798819]
[1750260306934,0.04372078,104790.0,104780.0,0.58798819]
[1750260307146,0.00505271,104790.0,104780.0,0.6647521]
[1750260307359,0.00505271,104790.0,104780.0,0.67929295]
[1750260307574,0.01005,104800.0,104780.0,0.68901081]
[1750260307819,0.01005,104800.0,104790.0,0.39745304]
[1750260308090,0.26239363,104850.0,104840.0,0.20984302]
[1750260308333,0.2195457,104850.0,104840.0,0.20984302]
[1750260308593,0.0195457,104850.0,104840.0,0.28418072]
[1750260308834,0.01000863,104850.0,104840.0,0.28418072]
[1750260309069,0.03874388,104850.0,104840.0,0.28418072]
[1750260309314,0.00047184,104850.0,104840.0,0.45090518]
[1750260311124,0.00047184,104850.0,104840.0,0.54169823]
[1750260311556,0.00047184,104850.0,104840.0,0.39496333]
[1750260311782,0.00047184,104850.0,104840.0,0.60548333]
[1750260312221,0.00047184,104850.0,104840.0,0.60648333]
[1750260312468,0.00047184,104850.0,104840.0,0.60548333]
[1750260312688,0.00047184,104850.0,104840.0,0.39596333]
[1750260312896,0.00047184,104850.0,104840.0,0.60740333]
[1750260313121,0.00047184,104850.0,104840.0,0.42434812]
[1750260313331,0.00047184,104850.0,104840.0,0.62024727]
[1750260313557,0.03861974,104850.0,104840.0,0.43006248]
[1750260313791,0.22592726,104850.0,104840.0,0.20430504]
[1750260314026,0.2002671,104860.0,104850.0,0.20982226]
[1750260314241,0.40994486,104860.0,104850.0,0.37462226]
[1750260314450,0.20982309,104850.0,104840.0,0.30964513]
[1750260314660,0.46035545,104850.0,104840.0,0.001]
[1750260314863,0.40028593,104850.0,104840.0,0.001]
[1750260315284,0.02861156,104850.0,104840.0,0.28708108]
[1750260315503,0.22889767,104850.0,104840.0,0.28408117]
[1750260315711,0.02861156,104850.0,104840.0,0.29361896]
[1750260316119,0.02861156,104850.0,104840.0,0.30215666]
[1750260316537,0.01907367,104850.0,104840.0,0.30215666]
[1750260316742,0.02861092,104850.0,104840.0,0.30215666]
[1750260316952,0.01907367,104850.0,104840.0,0.39839842]
[1750260317165,0.41785681,104860.0,104850.0,0.21936015]
[1750260317371,0.42739297,104860.0,104850.0,0.21936015]
[1750260317597,0.42739419,104860.0,104850.0,0.20982327]
[1750260317791,0.42739419,104860.0,104850.0,0.21936061]
[1750260318215,0.43611889,104860.0,104850.0,0.30123456]
[1750260318459,0.43611889,104860.0,104850.0,0.29169768]
[1750260319082,0.48359451,104860.0,104850.0,0.27262345]
[1750260319936,0.4170463,104860.0,104850.0,0.28216061]
[1750260320148,0.44565523,104860.0,104850.0,0.28216061]
[1750260320361,0.42820243,104860.0,104850.0,0.29169768]
[1750260320572,0.44564546,104860.0,104850.0,0.30123465]
[1750260321630,0.24564546,104860.0,104850.0,0.30123465]
[1750260322233,0.44564546,104860.0,104850.0,0.30123465]
[1750260322855,0.31314633,104860.0,104850.0,0.28216061]
[1750260323063,0.26790939,104860.0,104850.0,0.0319]
[1750260323275,0.20982345,104850.0,104840.0,0.26270522]
[1750260323486,0.01907549,104840.0,104830.0,0.48264658]
[1750260323696,0.23680104,104850.0,104840.0,0.26131878]
[1750260323907,0.2455211,104850.0,104840.0,0.25178108]
[1750260324332,0.2455211,104850.0,104840.0,0.29131915]
[1750260324540,0.05477242,104850.0,104840.0,0.3008563]
[1750260324742,0.0547716,104850.0,104840.0,0.38068317]
[1750260324980,0.06430885,104850.0,104840.0,0.3008563]
[1750260325168,0.07384619,104850.0,104840.0,0.3008563]
[1750260325383,0.25505826,104850.0,104840.0,0.26270522]
[1750260325602,0.20984329,104840.0,104830.0,0.31958695]
[1750260325806,0.20984329,104840.0,104830.0,0.48434695]
[1750260326017,0.23604344,104840.0,104830.0,0.48434695]
[1750260326268,0.23604344,104840.0,104830.0,0.43866695]
[1750260326475,0.25511893,104840.0,104830.0,0.45774472]
[1750260326677,0.29016808,104840.0,104830.0,0.39672843]
[1750260326931,0.00953943,104820.0,104810.0,0.27247221]
[1750260327136,0.22815623,104820.0,104810.0,0.29155398]
[1750260327343,0.05481972,104820.0,104810.0,0.29155399]
[1750260327573,0.25516307,104820.0,104810.0,0.28201356]
[1750260327987,0.20990262,104810.0,104800.0,0.20992338]
[1750260328210,0.25518482,104810.0,104800.0,0.22900671]
[1750260328412,0.23610368,104810.0,104800.0,0.21946509]
[1750260328616,0.23613191,104810.0,104800.0,0.21946509]
[1750260328824,0.23613191,104810.0,104800.0,0.22900661]
[1750260328825,0.27523867,104810.0,104800.0,0.22900661]
[1750260328995,0.27523867,104810.0,104800.0,0.36771062]
[1750260328996,0.07487557,104810.0,104800.0,0.36771062]
[1750260329209,0.07487539,104810.0,104800.0,0.36771062]
[1750260329357,0.28477819,104810.0,104800.0,0.35816928]
[1750260329561,0.28477819,104810.0,104790.0,0.2641007]
[1750260329562,0.2099231,104800.0,104790.0,0.2641007]
[1750260329767,0.22661005,104800.0,104790.0,0.0001]
[1750260329967,0.28873588,104800.0,104790.0,0.0001]
[1750260330962,0.22661005,104800.0,104790.0,0.2005007]
[1750260331162,0.22661005,104800.0,104790.0,0.28318548]
[1750260331163,0.03576963,104800.0,104790.0,0.28318548]
[1750260331478,0.05485295,104800.0,104790.0,0.28418548]
[1750260331877,0.24569264,104800.0,104790.0,0.2651007]
[1750260332021,0.22660987,104800.0,104790.0,0.0647]
[1750260332224,0.20912425,104800.0,104790.0,0.24344341]
[1750260332450,0.22666137,104800.0,104790.0,0.23390079]
[1750260332650,0.22666137,104800.0,104790.0,0.2519863]
[1750260332865,0.22666137,104800.0,104790.0,0.26152874]
[1750260333077,0.22666137,104800.0,104790.0,0.2519863]
[1750260333318,0.22670155,104800.0,104790.0,0.2519863]
[1750260333498,0.21715975,104800.0,104790.0,0.0001]
[1750260333833,0.21715975,104800.0,104790.0,0.00964289]
[1750260334283,0.21715975,104800.0,104790.0,0.2195863]
[1750260334525,0.21715975,104800.0,104790.0,0.2520863]
[1750260334766,0.0358614,104800.0,104790.0,0.36664316]
[1750260335008,0.24540302,104800.0,104790.0,0.36664316]
[1750260335391,0.44578442,104800.0,104790.0,0.36664316]
[1750260335620,0.2553264,104800.0,104790.0,0.36664335]
[1750260335853,0.23624344,104800.0,104790.0,0.0654]
[1750260336055,0.23624344,104800.0,104790.0,0.0001]
[1750260336204,0.23625852,104800.0,104790.0,0.20050079]
[1750260336417,0.45534111,104800.0,104790.0,0.27164341]
[1750260336622,0.45534111,104800.0,104790.0,0.28118594]
[1750260336623,0.24588095,104800.0,104790.0,0.28118594]
[1750260336819,0.02642718,104800.0,104790.0,0.66755426]
[1750260337021,0.02642718,104800.0,104790.0,0.62798215]
[1750260338242,0.00880906,104800.0,104790.0,0.62798215]
[1750260338638,0.00880906,104800.0,104790.0,0.62998215]
[1750260339213,0.00880906,104800.0,104790.0,0.71302181]
[1750260339842,0.00861821,104800.0,104790.0,0.71302181]
[1750260340047,0.00861821,104800.0,104790.0,0.72756266]
[1750260340306,0.01777159,104820.0,104810.0,0.29558445]
[1750260340307,0.00014141,104820.0,104810.0,0.29558445]
[1750260340488,0.00014141,104820.0,104810.0,0.60222621]
[1750260340690,0.00014141,104820.0,104810.0,0.70405399]
[1750260341266,0.00014141,104820.0,104810.0,0.93329399]
[1750260341723,0.41859634,104860.0,104850.0,0.20982327]
[1750260341925,0.21873769,104860.0,104850.0,0.20028611]
[1750260342130,0.25709483,104860.0,104840.0,0.43926203]
[1750260342336,0.45709483,104860.0,104850.0,0.20028611]
[1750260342718,0.39966556,104860.0,104850.0,0.20982345]
[1750260342925,0.21935951,104850.0,104840.0,0.47304856]
[1750260343103,0.02861083,104850.0,104840.0,0.50166248]
[1750260343509,0.21935969,104850.0,104840.0,0.41060847]
[1750260343892,0.0668342,104850.0,104840.0,0.4713223]
[1750260344102,0.40066565,104860.0,104850.0,0.21936024]
[1750260344303,0.20994461,104860.0,104850.0,0.21936024]
[1750260344747,0.20994461,104860.0,104850.0,0.20982327]
[1750260344907,0.19087184,104860.0,104840.0,0.49348368]
[1750260345107,0.00953716,104850.0,104840.0,0.5030212]
[1750260345313,0.00953716,104850.0,104840.0,0.5020212]
[1750260345526,0.01907441,104850.0,104840.0,0.49248368]
[1750260345746,0.01907441,104850.0,104840.0,0.48294653]
[1750260345747,0.2288975,104850.0,104840.0,0.48294653]
[1750260346179,0.2288975,104850.0,104840.0,0.45224653]
[1750260346446,0.21936043,104850.0,104840.0,0.20028865]
[1750260346657,0.2289186,104840.0,104830.0,0.38408976]
[1750260346907,0.23845694,104840.0,104830.0,0.3840903]
[1750260347108,0.23845694,104840.0,104830.0,0.2193703]
[1750260347339,0.03815172,104840.0,104830.0,0.42602891]
[1750260347546,0.01907549,104840.0,104830.0,0.45742891]
[1750260347799,0.00953752,104840.0,104830.0,0.4478892]
[1750260347992,0.05772391,104850.0,104840.0,0.25118081]
[1750260348195,0.38380213,104870.0,104850.0,0.20028611]
[1750260348363,0.19076006,104860.0,104850.0,0.00953743]
[1750260348682,0.19076006,104860.0,104850.0,0.20028611]
[1750260348883,0.19076006,104860.0,104840.0,0.28398081]
[1750260349108,0.01907413,104850.0,104840.0,0.29365977]
[1750260349512,0.03814771,104850.0,104840.0,0.29365977]
[1750260349713,0.03814762,104850.0,104840.0,0.29365977]
[1750260349862,0.001,104850.0,104840.0,0.29365977]
[1750260350067,0.001,104850.0,104840.0,0.38990153]
[1750260350291,0.001,104850.0,104840.0,0.54575764]
[1750260350702,0.002,104850.0,104840.0,0.54575764]
[1750260351112,0.002,104850.0,104840.0,0.46615373]
[1750260351540,0.001,104850.0,104840.0,0.46615373]
[1750260351749,0.001,104850.0,104840.0,0.46915373]
[1750260351951,0.02860538,104870.0,104860.0,0.21933896]
[1750260352128,0.06665733,104870.0,104860.0,0.38401896]
[1750260352327,0.08501953,104870.0,104860.0,0.38401896]
[1750260352537,0.0754841,104870.0,104860.0,0.38401896]
[1750260352742,0.06594885,104870.0,104860.0,0.41541896]
[1750260352938,0.05641369,104870.0,104860.0,0.44681896]
[1750260353144,0.06694875,104870.0,104860.0,0.44681896]
[1750260353458,0.07648391,104870.0,104860.0,0.44681896]
[1750260353689,0.0574136,104870.0,104860.0,0.44681896]
[1750260354076,0.0584136,104870.0,104860.0,0.44681896]
[1750260354308,0.04887609,104870.0,104860.0,0.44681896]
[1750260354517,0.01082414,104870.0,104860.0,0.61328321]
[1750260354878,0.01082414,104870.0,104860.0,0.54306072]
[1750260355258,0.01935865,104870.0,104860.0,0.54306072]
[1750260355461,0.19813608,104870.0,104860.0,0.0628]
[1750260355659,0.03814435,104860.0,104850.0,0.29664341]
[1750260355922,0.02860792,104860.0,104850.0,0.46128341]
[1750260356122,0.03814426,104860.0,104850.0,0.46128341]
[1750260356333,0.03814426,104860.0,104850.0,0.41568341]
[1750260356483,0.01907167,104860.0,104850.0,0.44578341]
[1750260356937,0.02860783,104860.0,104850.0,0.44678341]
[1750260357176,0.43278855,104860.0,104850.0,0.16563999]
[1750260357545,0.40980299,104860.0,104850.0,0.16563999]
[1750260358776,0.22963175,104870.0,104850.0,0.35638811]
[1750260359040,0.20026683,104860.0,104850.0,0.37546252]
[1750260359243,0.20026683,104860.0,104850.0,0.38499949]
[1750260359447,0.21891662,104860.0,104850.0,0.38399949]
[1750260359566,0.20126683,104860.0,104850.0,0.38399949]
[1750260360415,0.001,104860.0,104850.0,0.39353637]
[1750260360655,0.001,104860.0,104850.0,0.53003148]
[1750260360862,0.03914408,104860.0,104850.0,0.46607316]
[1750260361071,0.23941164,104860.0,104850.0,0.44699967]
[1750260361246,0.02007223,104860.0,104850.0,0.44699967]
[1750260361383,0.01053607,104860.0,104850.0,0.45653646]
[1750260361591,0.02960811,104860.0,104850.0,0.45653646]
[1750260362028,0.001,104860.0,104850.0,0.45653646]
[1750260362274,0.001,104860.0,104850.0,0.52679469]
[1750260362496,0.0105357,104860.0,104850.0,0.45653646]
[1750260363401,0.001,104860.0,104850.0,0.45653646]
[1750260363861,0.001,104860.0,104850.0,0.38813823]
[1750260364502,0.001,104860.0,104850.0,0.47893128]
[1750260364914,0.001,104860.0,104850.0,0.50758628]
[1750260365123,0.001,104860.0,104850.0,0.58338949]
[1750260365348,5e-05,104880.0,104870.0,0.21931805]
[1750260365556,5e-05,104880.0,104870.0,0.37815981]
[1750260367584,5e-05,104880.0,104870.0,0.38315981]
[1750260368271,5e-05,104880.0,104870.0,0.47395286]
[1750260368511,5e-05,104880.0,104870.0,0.38315981]
[1750260368988,5e-05,104880.0,104870.0,0.41153574]
[1750260369272,0.00890198,104880.0,104870.0,0.41153574]
[1750260369897,0.00890198,104880.0,104870.0,0.38315981]
[1750260371820,0.01843586,104880.0,104870.0,0.38315981]
[1750260372028,0.00890198,104880.0,104870.0,0.38315981]
[1750260372242,0.01843586,104880.0,104870.0,0.38315981]
[1750260372658,0.02797002,104880.0,104870.0,0.38315981]
[1750260372869,0.24726752,104880.0,104870.0,0.20524783]
[1750260373112,0.23773259,104880.0,104870.0,0.22431824]
[1750260373326,0.27810143,104880.0,104870.0,0.22431824]
[1750260373526,0.08740731,104880.0,104870.0,0.24138827]
[1750260373742,0.06474299,104880.0,104870.0,0.2288533]
[1750260373945,0.05520829,104880.0,104870.0,0.23838827]
[1750260374571,0.04567386,104880.0,104870.0,0.23838827]
[1750260375195,0.03614119,104880.0,104870.0,0.23838827]
[1750260375404,0.00890279,104880.0,104870.0,0.43914028]
[1750260375830,0.00890306,104880.0,104870.0,0.43914028]
[1750260376434,0.00890306,104880.0,104870.0,0.39623003]
[1750260377099,0.00890306,104880.0,104870.0,0.56075003]
[1750260379195,0.00890306,104880.0,104870.0,0.60627003]
[1750260381442,0.00890823,104880.0,104870.0,0.60627003]
[1750260381872,0.00890823,104880.0,104870.0,0.36762484]
[1750260382068,0.0375107,104880.0,104870.0,0.56603497]
[1750260382269,0.05522728,104880.0,104870.0,0.46979321]
[1750260383078,0.07429632,104880.0,104870.0,0.4388933]
[1750260383414,0.07429632,104880.0,104870.0,0.44842827]
[1750260383545,0.26499044,104880.0,104870.0,0.24576783]
[1750260383747,0.0778926,104880.0,104870.0,0.41982326]
[1750260383973,0.05522828,104880.0,104870.0,0.43889357]
[1750260384174,0.0456933,104880.0,104870.0,0.44842854]
[1750260384375,0.05522782,104880.0,104870.0,0.44842854]
[1750260384586,0.06476243,104880.0,104870.0,0.44842854]
[1750260385252,0.07429713,104880.0,104870.0,0.43889357]
[1750260385718,0.25545655,104880.0,104870.0,0.21931851]
[1750260385939,0.31828563,104880.0,104870.0,0.37426317]
[1750260386156,0.31828563,104880.0,104870.0,0.38379842]
[1750260386597,0.26858681,104880.0,104870.0,0.38379842]
[1750260386816,0.26858861,104880.0,104870.0,0.37426317]
[1750260387026,0.00953525,104870.0,104860.0,0.22281422]
[1750260387262,0.20910795,104870.0,104860.0,0.20026656]
[1750260387483,0.04564729,104870.0,104860.0,0.38381896]
[1750260387726,0.07425266,104870.0,104860.0,0.38381896]
[1750260387954,0.26497532,104870.0,104860.0,0.38381915]
[1750260388180,0.28763964,104870.0,104860.0,0.39335512]
[1750260388444,0.07785666,104870.0,104860.0,0.38381896]
[1750260388671,0.25544026,104870.0,104860.0,0.38381896]
[1750260388883,0.23636913,104870.0,104860.0,0.37528308]
[1750260389108,0.24590474,104870.0,104860.0,0.38781915]
[1750260389328,0.24590474,104870.0,104860.0,0.38481915]
[1750260389550,0.29838536,104870.0,104860.0,0.37528308]
[1750260389764,0.25904387,104870.0,104860.0,0.37628326]
[1750260389966,0.26440527,104870.0,104860.0,0.36574692]
[1750260390168,0.24950844,104870.0,104860.0,0.001]
[1750260390423,0.25486984,104870.0,104860.0,0.001]
[1750260390835,0.25486984,104870.0,104860.0,0.19173049]
[1750260391037,0.25486984,104870.0,104860.0,0.20126683]
[1750260391190,0.08322784,104870.0,104860.0,0.22033905]
[1750260391401,0.25545004,104870.0,104860.0,0.22033915]
[1750260391746,0.28347576,104870.0,104860.0,0.22987512]
[1750260391947,0.30614008,104870.0,104860.0,0.22987512]
[1750260392401,0.10588902,104870.0,104860.0,0.239411]
[1750260392605,0.0832247,104870.0,104860.0,0.239411]
[1750260392814,0.05519789,104870.0,104860.0,0.33829691]
[1750260393019,0.05519789,104870.0,104860.0,0.36939691]
[1750260393232,0.02659335,104870.0,104860.0,0.39835276]
[1750260393437,0.06621289,104880.0,104870.0,0.28201805]
[1750260393636,0.09279293,104880.0,104870.0,0.28201805]
[1750260393858,0.09279293,104880.0,104870.0,0.44645805]
[1750260394252,0.08325841,104880.0,104870.0,0.44645805]
[1750260394451,0.09279293,104880.0,104870.0,0.44645805]
[1750260394688,0.06476721,104880.0,104870.0,0.44645805]
[1750260394899,0.09279293,104880.0,104870.0,0.44645805]
[1750260395111,0.0934674,104880.0,104870.0,0.44645805]
[1750260395331,0.10232699,104880.0,104870.0,0.44645805]
[1750260395509,0.06476666,104880.0,104870.0,0.44645805]
[1750260396153,0.07430127,104880.0,104870.0,0.44645805]
[1750260396358,0.07530127,104880.0,104870.0,0.44645805]
[1750260396790,0.24692726,104880.0,104870.0,0.40582317]
[1750260397202,0.26005715,104880.0,104870.0,0.40582317]
[1750260397612,0.29261604,104880.0,104860.0,0.30604392]
[1750260397817,0.00953543,104870.0,104860.0,0.39110063]
[1750260398021,0.00953543,104870.0,104860.0,0.55554063]
[1750260398225,0.00953516,104870.0,104860.0,0.56507633]
[1750260398430,0.00953516,104870.0,104860.0,0.59827633]
[1750260398634,0.01907003,104870.0,104860.0,0.59827633]
[1750260399094,0.01907003,104870.0,104860.0,0.59927633]
[1750260399095,0.02860528,104870.0,104860.0,0.59927633]
[1750260399310,0.02860528,104870.0,104860.0,0.58974063]
[1750260399311,0.04699911,104870.0,104860.0,0.58974063]
[1750260399513,0.03746368,104870.0,104860.0,0.58974063]
[1750260399718,0.02792843,104870.0,104860.0,0.37978063]
[1750260399943,0.03746359,104870.0,104860.0,0.58974063]
[1750260400501,0.05520761,104870.0,104860.0,0.58974063]
[1750260400868,0.06474295,104870.0,104860.0,0.58974063]
[1750260401291,0.06475658,104870.0,104860.0,0.58974063]
[1750260401499,0.05522124,104870.0,104860.0,0.58974063]
[1750260401904,0.05522124,104870.0,104860.0,0.58846705]
[1750260402101,0.26500459,104870.0,104860.0,0.39439325]
[1750260402330,0.06835096,104870.0,104860.0,0.3739295]
[1750260402538,0.05522216,104870.0,104860.0,0.39300135]
[1750260402739,0.04568664,104870.0,104860.0,0.45600135]
[1750260402954,0.05522143,104870.0,104860.0,0.45600135]
[1750260403330,0.02661605,104870.0,104860.0,0.55224311]
[1750260403518,0.26862857,104880.0,104870.0,0.21931832]
[1750260403756,0.06840048,104880.0,104870.0,0.25995329]
[1750260403965,0.02666776,104880.0,104870.0,0.29265329]
[1750260404157,5e-05,104880.0,104870.0,0.38889505]
[1750260404352,5e-05,104880.0,104870.0,0.48024829]
[1750260404578,5e-05,104880.0,104870.0,0.55650049]
[1750260404772,5e-05,104880.0,104870.0,0.55634107]
[1750260404980,5e-05,104880.0,104870.0,0.58509166]
[1750260405254,0.00105,104880.0,104870.0,0.58509166]
[1750260405460,0.00105,104880.0,104870.0,0.54657158]
[1750260405661,5e-05,104880.0,104870.0,0.75737158]
[1750260405896,5e-05,104880.0,104870.0,0.76237158]
[1750260406108,5e-05,104880.0,104870.0,0.72407927]
[1750260406734,5e-05,104880.0,104870.0,0.71907927]
[1750260407145,5e-05,104880.0,104870.0,0.64182707]
[1750260407617,5e-05,104880.0,104870.0,0.43602707]
[1750260407832,5e-05,104880.0,104870.0,0.73277436]
[1750260408047,5e-05,104880.0,104870.0,0.64582707]
[1750260408261,5e-05,104880.0,104870.0,0.65182707]
[1750260408472,5e-05,104880.0,104870.0,0.61307648]
[1750260408694,5e-05,104880.0,104870.0,0.60553563]
[1750260408916,5e-05,104880.0,104870.0,0.60549563]
[1750260409117,5e-05,104880.0,104870.0,0.62003648]
[1750260410847,0.00019223,104880.0,104870.0,0.62003648]
[1750260411275,0.00019223,104880.0,104870.0,0.70193941]
[1750260412130,5e-05,104880.0,104870.0,0.70179718]
[1750260413652,5e-05,104880.0,104870.0,0.61989425]
[1750260414128,5e-05,104880.0,104870.0,0.64892248]
[1750260414809,5e-05,104880.0,104870.0,0.43916248]
[1750260415020,5e-05,104880.0,104870.0,0.64888248]
[1750260416802,5e-05,104880.0,104870.0,0.43916248]
[1750260417016,5e-05,104880.0,104870.0,0.64888248]
[1750260417242,5e-05,104880.0,104870.0,0.73653531]
[1750260417493,5e-05,104880.0,104870.0,0.43916248]
[1750260417902,5e-05,104880.0,104870.0,0.64888248]
[1750260419912,0.08503636,104910.0,104900.0,0.20019055]
[1750260420144,0.10275043,104910.0,104900.0,0.37396325]
[1750260420370,0.10275043,104910.0,104900.0,0.16424]
[1750260420614,0.01906659,104890.0,104880.0,0.30786846]
[1750260420852,0.00953307,104890.0,104880.0,0.5559188]
[1750260421758,0.01906632,104890.0,104880.0,0.5559188]
[1750260421981,0.02859966,104890.0,104880.0,0.3482388]
[1750260422220,0.03813318,104890.0,104880.0,0.5578788]
[1750260422436,0.02859966,104890.0,104880.0,0.5578788]
[1750260423098,0.02859966,104890.0,104880.0,0.5588788]
[1750260423510,0.03757318,104890.0,104880.0,0.43193704]
[1750260423727,0.04710679,104890.0,104880.0,0.43193704]
[1750260423940,4.73269822,104900.0,104890.0,0.21927641]
[1750260424156,0.03815901,104910.0,104900.0,0.20972289]
[1750260424366,0.07508917,104910.0,104900.0,0.38345514]
[1750260424574,0.04646177,104910.0,104900.0,0.38345514]
[1750260424787,0.06552715,104910.0,104900.0,0.38345514]
[1750260424997,0.05599527,104910.0,104900.0,0.38345514]
[1750260425640,0.04646348,104910.0,104900.0,0.38345514]
[1750260425846,0.04746348,104910.0,104900.0,0.38345514]
[1750260426072,0.05699476,104910.0,104900.0,0.38345514]
[1750260426499,0.09620007,104910.0,104900.0,0.38345514]
[1750260426745,0.10573195,104910.0,104900.0,0.38345514]
[1750260426956,0.09620007,104910.0,104900.0,0.38345514]
[1750260427177,0.06760524,104910.0,104900.0,0.38345514]
[1750260427387,0.00114135,104910.0,104900.0,0.62897165]
[1750260428268,0.00114135,104910.0,104900.0,0.55683775]
[1750260428721,0.00014135,104910.0,104900.0,0.55683775]
[1750260430239,0.00014135,104910.0,104900.0,0.55783775]
[1750260430452,0.00014135,104910.0,104900.0,0.60319775]
[1750260430686,0.00014135,104910.0,104900.0,0.60519775]
[1750260430907,0.20031228,104910.0,104900.0,0.12794176]
[1750260431181,0.28083525,104910.0,104900.0,0.36431064]
[1750260431427,0.2535753,104910.0,104900.0,0.17112]
[1750260431665,0.27130351,104910.0,104900.0,0.003]
[1750260431899,0.30286466,104910.0,104900.0,0.37784343]
[1750260432134,0.01906531,104900.0,104890.0,0.2647165]
[1750260432378,0.20972298,104900.0,104880.0,0.27476206]
[1750260432628,0.01906622,104890.0,104880.0,0.43535213]
[1750260432847,0.01906622,104890.0,104880.0,0.59947213]
[1750260433345,0.01906613,104890.0,104880.0,0.59947213]
[1750260433816,0.03612891,104900.0,104890.0,0.21927623]
[1750260434049,0.01840563,104900.0,104890.0,0.21927623]
[1750260434288,0.00953216,104900.0,104890.0,0.24977623]
[1750260434557,0.29424968,104910.0,104900.0,0.20019046]
[1750260434790,0.26870294,104910.0,104900.0,0.19065776]
[1750260435016,0.25917151,104910.0,104900.0,0.20972325]
[1750260435251,0.0612804,104910.0,104900.0,0.2287882]
[1750260435486,0.04810562,104910.0,104900.0,0.20972325]
[1750260435726,0.04810562,104910.0,104900.0,0.21925586]
[1750260435956,0.0671692,104910.0,104900.0,0.21925586]
[1750260436177,0.07670117,104910.0,104900.0,0.39286838]
[1750260436600,0.02859537,104910.0,104900.0,0.40240081]
[1750260436815,0.02859438,104910.0,104900.0,0.40239991]
[1750260437034,0.0391259,104910.0,104900.0,0.38333532]
[1750260437447,0.0391259,104910.0,104900.0,0.39286757]
[1750260437665,0.04865778,104910.0,104900.0,0.39286757]
[1750260437874,0.0391259,104910.0,104900.0,0.39286757]
[1750260438364,0.02006259,104910.0,104900.0,0.39286757]
[1750260438613,0.0295942,104910.0,104900.0,0.39286757]
[1750260438827,0.02006259,104910.0,104900.0,0.39286757]
[1750260439040,0.03912608,104910.0,104900.0,0.39286757]
[1750260439249,0.03912599,104910.0,104900.0,0.39286757]
[1750260439703,0.0295942,104910.0,104900.0,0.39286757]
[1750260439941,0.02006259,104910.0,104900.0,0.39286757]
[1750260440122,0.02006259,104910.0,104900.0,0.42476757]
[1750260440488,0.0295942,104910.0,104900.0,0.42476757]
[1750260441157,0.03912599,104910.0,104900.0,0.42476757]
[1750260441391,0.0295942,104910.0,104900.0,0.42476757]
[1750260441602,0.0391259,104910.0,104900.0,0.42476757]
[1750260441813,0.04865859,104910.0,104900.0,0.42472766]
[1750260442044,0.03912662,104910.0,104900.0,0.40235991]
[1750260442307,0.02006259,104910.0,104900.0,0.40235991]
[1750260442529,0.02959411,104910.0,104900.0,0.43315991]